[Event "Israeli Open Championship 2019"]
[Site "Jerusalem"]
[Date "2019.12.17"]
[Round "5.7"]
[White "Lahav, Michal"]
[Black "Sokolovsky, Yahli"]
[Result "1-0"]
[ECO "D00"]
[WhiteElo "2244"]
[BlackElo "2045"]
[Annotator "ChessBase"]
[PlyCount "53"]
[EventDate "2019.12.12"]
[EventType "swiss"]
[EventCountry "ISR"]
[SourceTitle "playchess.com"]
[Source "ChessBase"]
[SourceQuality "1"]
[TimeControl "5400+30"]

1. d4 {[%emt 0:00:00]} Nf6 {[%emt 0:02:02]} 2. Bf4 {[%emt 0:00:05]} g6 {[%emt 0:00:53]} 3. Nc3 {[%emt 0:00:18]} d5 {[%emt 0:00:56]} 4. e3 {[%emt 0:00:27]} Bg7 {[%emt 0:00:25]} 5. h4 {[%emt 0:00:23]} h5 {[%emt 0:01:49]} 6. Nf3 {[%emt 0:00:29]} O-O {[%emt 0:16:32]} 7. Be2 {[%emt 0:00:35]} Bg4 {[%emt 0:10:18]} 8. Ne5 {[%emt 0:01:12]} Bxe2 {[%emt 0:00:24]} 9. Qxe2 {[%emt 0:00:26]} Nbd7 {[%emt 0:04:02]} 10. O-O-O {[%emt 0:00:55]} c6 {[%emt 0:02:27]} 11. f3 {[%emt 0:01:08]} Nxe5 {[%emt 0:14:16]} 12. Bxe5 {[%emt 0:03:32]} b5 {[%emt 0:04:55]} 13. g4 {[%emt 0:01:00]} hxg4 {[%emt 0:10:47]} 14. fxg4 {[%emt 0:03:41]} b4 {[%emt 0:01:24]} 15. h5 {[%emt 0:17:30]} bxc3 {[%emt 0:05:42]} 16. h6 {[%emt 0:00:04]} Qb6 {[%emt 0:10:05]} 17. bxc3 {[%emt 0:00:13]} Rfb8 {[%emt 0:06:05]} 18. hxg7 {[%emt 0:04:42]} Qb2+ {[%emt 0:00:10]} 19. Kd2 {[%emt 0:00:02]} Ne4+ {[%emt 0:00:49]} 20. Ke1 {[%emt 0:00:02]} Qxc3+ {[%emt 0:02:16]} 21. Kf1 {[%emt 0:00:02]} f6 {[%emt 0:00:55]} 22. Bxb8 {[%emt 0:06:00]} Rxb8 {[%emt 0:00:15]} 23. Qh2 {[%emt 0:00:15]} Kxg7 {[%emt 0:01:35]} 24. Qxb8 {[%emt 0:00:07]} Qxc2 {[%emt 0:01:08]} 25. Qh8+ {[%emt 0:00:14]} Kf7 {[%emt 0:00:05]} 26. Rh7+ {[%emt 0:00:04]} Ke6 {[%emt 0:00:04]} 27. Qc8+ {[%emt 0:00:10]} 1-0

[Event "Israeli Open Championship 2019"]
[Site "Jerusalem"]
[Date "2019.12.17"]
[Round "5.8"]
[White "Sobel, Ido"]
[Black "Baron, Tal"]
[Result "0-1"]
[ECO "B23"]
[WhiteElo "1711"]
[BlackElo "2541"]
[Annotator "ChessBase"]
[PlyCount "42"]
[EventDate "2019.12.12"]
[EventType "swiss"]
[EventCountry "ISR"]
[SourceTitle "playchess.com"]
[Source "ChessBase"]
[SourceQuality "1"]
[TimeControl "5400+30"]

1. e4 {[%emt 0:00:00]} c5 {[%emt 0:00:46]} 2. Nc3 {[%emt 0:00:00]} Nc6 {[%emt 0:00:32]} 3. f4 {[%emt 0:00:00]} g6 {[%emt 0:00:03]} 4. Bc4 {[%emt 0:00:11]} Bg7 {[%emt 0:00:06]} 5. Nf3 {[%emt 0:00:15]} e6 {[%emt 0:00:04]} 6. d3 {[%emt 0:01:03]} Nge7 {[%emt 0:00:02]} 7. O-O {[%emt 0:00:59]} d5 {[%emt 0:00:03]} 8. Bb5 {[%emt 0:00:50]} O-O {[%emt 0:00:19]} 9. Bxc6 {[%emt 0:04:02]} Nxc6 {[%emt 0:00:05]} 10. Qe1 {[%emt 0:00:14]} b6 {[%emt 0:04:23]} 11. a3 {[%emt 0:13:24]} Ba6 {[%emt 0:06:54]} 12. Qg3 {[%emt 0:01:17]} Nd4 {[%emt 0:02:13]} 13. Qf2 {[%emt 0:13:55]} dxe4 {[%emt 0:02:11]} 14. Nxe4 {[%emt 0:00:07]} Nxc2 {[%emt 0:01:21]} 15. Qxc2 {[%emt 0:14:42]} Bxd3 {[%emt 0:00:25]} 16. Qa4 {[%emt 0:00:12]} b5 {[%emt 0:00:21]} 17. Qb3 {[%emt 0:00:06]} c4 {[%emt 0:05:06]} 18. Qb4 {[%emt 0:03:58]} Bxf1 {[%emt 0:02:26]} 19. Kxf1 {[%emt 0:05:52]} Qd3+ {[%emt 0:00:06]} 20. Kg1 {[%emt 0:01:02]} Qxe4 {[%emt 0:00:14]} 21. Bd2 {[%emt 0:00:25]} Rfd8 {[%emt 0:00:56]} 0-1

[Event "Israeli Open Championship 2019"]
[Site "Jerusalem"]
[Date "2019.12.17"]
[Round "5.9"]
[White "Slonimskij, Arkadij"]
[Black "Gorodetzky, Matan"]
[Result "0-1"]
[ECO "D33"]
[WhiteElo "2133"]
[BlackElo "2284"]
[Annotator "ChessBase"]
[PlyCount "56"]
[EventDate "2019.12.12"]
[EventType "swiss"]
[EventCountry "ISR"]
[SourceTitle "playchess.com"]
[Source "ChessBase"]
[SourceQuality "1"]
[TimeControl "5400+30"]

1. d4 {[%emt 0:00:00]} d5 {[%emt 0:00:24]} 2. c4 {[%emt 0:00:00]} e6 {[%emt 0:00:14]} 3. cxd5 exd5 {[%emt 0:00:08]} 4. Nc3 {[%emt 0:00:00]} c5 {[%emt 0:00:58]} 5. Nf3 {[%emt 0:02:45]} Nc6 {[%emt 0:00:26]} 6. g3 {[%emt 0:00:24]} Nf6 {[%emt 0:01:03]} 7. Bg2 {[%emt 0:00:14]} cxd4 {[%emt 0:01:08]} 8. Nxd4 {[%emt 0:00:30]} Bc5 {[%emt 0:00:08]} 9. Nb3 {[%emt 0:02:00]} Bb6 {[%emt 0:00:04]} 10. O-O {[%emt 0:00:41]} d4 {[%emt 0:01:04]} 11. Na4 {[%emt 0:02:51]} O-O {[%emt 0:00:59]} 12. Nxb6 {[%emt 0:00:26]} axb6 {[%emt 0:00:17]} 13. Bd2 {[%emt 0:07:21]} Re8 {[%emt 0:02:58]} 14. Nc1 {[%emt 0:01:31]} Be6 {[%emt 0:12:33]} 15. Nd3 {[%emt 0:06:07]} Bd5 {[%emt 0:06:07]} 16. f3 {[%emt 0:02:55]} Bc4 {[%emt 0:08:44]} 17. Re1 {[%emt 0:09:48]} Nd5 {[%emt 0:03:28]} 18. Qc2 {[%emt 0:01:58]} Ba6 {[%emt 0:02:29]} 19. b4 {[%emt 0:05:03]} Ne3 {[%emt 0:08:07]} 20. Qb1 {[%emt 0:04:42]} Bb5 {[%emt 0:00:50]} 21. Nb2 {[%emt 0:02:56]} Nxg2 {[%emt 0:02:22]} 22. Kxg2 {[%emt 0:00:05]} Bxe2 {[%emt 0:00:16]} 23. Qf5 {[%emt 0:11:09]} g6 {[%emt 0:02:27]} 24. Qc2 {[%emt 0:03:03]} d3 {[%emt 0:07:18]} 25. Qc3 {[%emt 0:02:40]} Qd5 {[%emt 0:02:46]} 26. Bh6 {[%emt 0:02:16]} Nd4 {[%emt 0:02:51]} 27. Nxd3 {[%emt 0:11:06]} Qxf3+ {[%emt 0:01:06]} 28. Kg1 {[%emt 0:00:30]} Qxd3 {[%emt 0:02:13]} 0-1

[Event "Israeli Open Championship 2019"]
[Site "Jerusalem"]
[Date "2019.12.17"]
[Round "5.10"]
[White "Tsyn, Igor"]
[Black "Kunin, Michael"]
[Result "1/2-1/2"]
[ECO "B43"]
[WhiteElo "2154"]
[BlackElo "2102"]
[Annotator "NA"]
[PlyCount "80"]
[EventDate "2019.12.12"]
[EventType "swiss"]
[EventCountry "ISR"]
[SourceTitle "playchess.com"]
[Source "ChessBase"]
[SourceQuality "1"]
[TimeControl "5400+30"]

1. e4 {[%emt 0:00:00]} c5 {[%emt 0:00:00]} 2. Nf3 {[%emt 0:00:00]} e6 {[%emt 0:00:00]} 3. d4 {[%emt 0:00:00]} cxd4 {[%emt 0:00:00]} 4. Nxd4 {[%emt 0:00:00]} a6 {[%emt 0:00:00]} 5. Nc3 {[%emt 0:03:30]} b5 {[%emt 0:00:00]} 6. Bd3 {[%emt 0:01:22]} Bb7 {[%emt 0:00:07]} 7. O-O {[%emt 0:00:33]} d6 {[%emt 0:00:07]} 8. a3 {[%emt 0:19:16]} Nd7 {[%emt 0:00:31]} 9. Qe2 {[%emt 0:04:15]} Ngf6 {[%emt 0:18:25]} 10. Kh1 {[%emt 0:17:55]} Be7 {[%emt 0:03:10]} 11. f4 {[%emt 0:00:37]} Rc8 {[%emt 0:17:15]} 12. e5 {[%emt 0:08:17]} dxe5 {[%emt 0:11:32]} (12... Nd5 $142) 13. fxe5 {[%emt 0:00:25]} Nxe5 {[%emt 0:02:29]} 14. Qxe5 {[%emt 0:25:11]} Rc5 {[%emt 0:17:44] [#]} 15. Qe3 $18 {[%emt 0:00:23]} Rh5 {[%emt 0:12:12]} 16. Be2 {[%emt 0:01:13]} Rh4 {[%emt 0:00:51]} 17. Bf3 {[%emt 0:05:09]} Ng4 {[%emt 0:07:32]} 18. Bxb7 {[%emt 0:08:35]} Nxe3 {[%emt 0:00:42]} 19. Bc6+ {[%emt 0:00:05]} Kf8 {[%emt 0:00:12]} 20. Nxe6+ {[%emt 0:00:06]} Kg8 {[%emt 0:00:07]} 21. Nxd8 {[%emt 0:00:57]} Nxf1 {[%emt 0:00:21]} 22. Kg1 {[%emt 0:01:36]} Nxh2 {[%emt 0:03:38]} 23. Nb7 {[%emt 0:00:02]} Ng4 {[%emt 0:00:37]} 24. Nd5 {[%emt 0:00:17]} Bf8 {[%emt 0:00:18]} 25. Bg5 {[%emt 0:01:45]} Rh5 {[%emt 0:00:18]} 26. Ne7+ {[%emt 0:00:18]} Bxe7 {[%emt 0:00:03]} 27. Bxe7 {[%emt 0:00:01]} Re5 {[%emt 0:01:26]} 28. Rd1 {[%emt 0:00:53]} h5 {[%emt 0:00:31]} 29. Bd6 {[%emt 0:00:10]} Rf5 {[%emt 0:02:11]} 30. Re1 {[%emt 0:01:15]} g6 {[%emt 0:00:32]} 31. Bb4 {[%emt 0:00:31]} Kh7 {[%emt 0:00:52]} 32. Nd6 {[%emt 0:00:13]} Rf6 {[%emt 0:00:17]} 33. Bd5 {[%emt 0:00:50]} Rd8 {[%emt 0:00:41]} 34. Bxf7 {[%emt 0:00:46]} Rfxd6 {[%emt 0:00:47]} 35. Bxd6 {[%emt 0:00:02]} Rxd6 {[%emt 0:00:08]} 36. Bb3 {[%emt 0:00:49]} Rd2 {[%emt 0:00:29]} 37. Kf1 {[%emt 0:00:40]} Rf2+ {[%emt 0:02:25]} 38. Kg1 Rd2 {[%emt 0:00:00]} 39. Kf1 {[%emt 0:00:32]} Rf2+ {[%emt 0:00:00]} 40. Kg1 {[%emt 0:00:01]} Rd2 {[%emt 0:00:00]} 1/2-1/2

[Event "Israeli Open Championship 2019"]
[Site "Jerusalem"]
[Date "2019.12.17"]
[Round "5.11"]
[White "Har-Even, Abir"]
[Black "Leor, Ephraim"]
[Result "1/2-1/2"]
[ECO "B07"]
[WhiteElo "2104"]
[BlackElo "1704"]
[Annotator "NA"]
[PlyCount "118"]
[EventDate "2019.12.12"]
[EventType "swiss"]
[EventCountry "ISR"]
[SourceTitle "playchess.com"]
[Source "ChessBase"]
[SourceQuality "1"]
[TimeControl "5400+30"]

1. e4 {[%emt 0:00:00]} g6 {[%emt 0:00:00]} 2. Nc3 {[%emt 0:00:00]} Bg7 {[%emt 0:00:00]} 3. f4 {[%emt 0:01:09]} d6 {[%emt 0:01:19]} 4. Nf3 {[%emt 0:00:07]} Nf6 {[%emt 0:05:00]} 5. d3 {[%emt 0:03:10]} (5. h3 O-O 6. g4 e5 7. f5 d5 8. d3 dxe4 9. dxe4 Qxd1+ 10. Kxd1 c6 11. Bd3 Re8 12. Nh4 Nbd7 {1-0 (48) Quesada Perez,Y (2572)-Kadric,D (2558) Saint Louis 2019}) 5... Bg4 {[%emt 0:02:39]} 6. h3 {[%emt 0:00:15] B07: Pirc Defence: Miscellaneous Systems} Bxf3 {[%emt 0:00:08]} 7. Qxf3 {[%emt 0:00:15]} Nc6 {[%emt 0:01:39]} 8. Be3 {[%emt 0:01:48]} O-O {[%emt 0:01:17]} 9. Be2 {[%emt 0:01:55]} e5 {[%emt 0:07:08]} 10. Qg3 $146 {[%emt 0:13:20]} ({Predecessor:} 10. O-O-O $11 d5 11. Nxd5 Nxd5 12. exd5 Nb4 {1-0 (21) Rodriguez Ferrer,P-Marco Catala,J (2003) Cullera 2004}) 10... Nd4 {[%emt 0:17:45]} 11. Bxd4 {[%emt 0:06:51]} exd4 {[%emt 0:00:15]} 12. Nb1 {[%emt 0:00:40]} Nxe4 {[%emt 0:04:59]} 13. dxe4 {[%emt 0:03:25]} d3 $1 {[%emt 0:00:07] Discovered Attack} 14. Qxd3 {[%emt 0:12:12]} Bxb2 {[%emt 0:00:39]} 15. O-O {[%emt 0:00:10]} Bxa1 {[%emt 0:00:44]} 16. c3 {[%emt 0:00:09]} c6 {[%emt 0:08:52]} 17. Nd2 {[%emt 0:05:56]} Qb6+ {[%emt 0:03:39]} 18. Kh1 {[%emt 0:00:33]} Qb2 $1 {[%emt 0:06:21]} 19. Nb3 {[%emt 0:00:28]} Qxa2 {[%emt 0:00:49]} (19... f5 $15 20. e5 (20. Rxa1 fxe4 21. Qe3 a5 $17) 20... Qxa2 21. Nxa1 dxe5 22. fxe5 a5) 20. Nxa1 {[%emt 0:00:18]} Rad8 {[%emt 0:01:18]} 21. Nc2 {[%emt 0:01:00]} d5 {[%emt 0:07:20]} 22. e5 {[%emt 0:03:21]} c5 {[%emt 0:02:18]} 23. Bf3 {[%emt 0:15:12]} (23. Qd2 $16) 23... Rfe8 $2 {[%emt 0:06:23] [#]} (23... Qc4 $11 24. Qxc4 dxc4) 24. Re1 {[%emt 0:02:51]} (24. Ne3 $1 $18) 24... Qc4 {[%emt 0:04:12]} 25. Qxc4 {[%emt 0:09:05]} dxc4 {[%emt 0:00:06]} 26. Bxb7 {[%emt 0:00:05]} Rd3 $1 {[%emt 0:02:08]} 27. Ne3 $16 {[%emt 0:09:23]} Rb8 {[%emt 0:02:09]} 28. Bd5 {[%emt 0:00:34]} Rxc3 {[%emt 0:01:14]} 29. Nxc4 {[%emt 0:01:49]} Rd3 {[%emt 0:03:21]} 30. Be4 {[%emt 0:00:57]} Rd4 {[%emt 0:00:43]} 31. Nd6 {[%emt 0:00:25]} a5 {[%emt 0:02:08]} 32. Rc1 {[%emt 0:01:04]} c4 {[%emt 0:00:40]} 33. Rxc4 {[%emt 0:03:00]} Rxc4 {[%emt 0:00:12]} 34. Nxc4 {[%emt 0:00:05]} a4 {[%emt 0:02:07]} 35. Bd5 {[%emt 0:00:33]} Rb5 {[%emt 0:01:25]} 36. Bxf7+ {[%emt 0:01:39]} Kf8 {[%emt 0:00:50]} 37. Be6 {[%emt 0:02:18]} Ke7 {[%emt 0:00:37]} 38. Bg8 {[%emt 0:00:24]} Kf8 {[%emt 0:00:54]} 39. Be6 {[%emt 0:01:09]} Ke7 {[%emt 0:00:16]} 40. Bg4 {[%emt 0:02:25]} Rb4 {[%emt 0:00:49]} 41. Be2 {[%emt 0:00:00]} Rb3 {[%emt 0:01:10]} 42. Na5 {[%emt 0:00:00]} Rb1+ {[%emt 0:00:32]} 43. Kh2 {[%emt 0:00:00]} a3 {[%emt 0:00:55]} 44. Bc4 {[%emt 0:00:14]} Rb2 {[%emt 0:00:30]} 45. Nc6+ {[%emt 0:00:49]} Ke8 {[%emt 0:00:44]} 46. Bd5 {[%emt 0:01:00]} a2 {[%emt 0:00:25]} 47. Bxa2 {[%emt 0:00:05]} Rxa2 {[%emt 0:00:03]} 48. Nd4 {[%emt 0:00:24]} Ke7 {[%emt 0:00:56]} 49. Kg3 {[%emt 0:00:35]} Rd2 {[%emt 0:00:36]} 50. Nf3 {[%emt 0:00:18]} Rd3 {[%emt 0:00:38]} 51. Kg4 {[%emt 0:00:37]} h6 {[%emt 0:01:13]} 52. h4 {[%emt 0:00:52]} Ke6 {[%emt 0:01:16]} 53. h5 {[%emt 0:01:02]} gxh5+ {[%emt 0:00:11]} 54. Kxh5 {[%emt 0:00:02]} Kf5 {[%emt 0:00:26]} 55. Kxh6 {[%emt 0:00:15]} Kxf4 {[%emt 0:00:15]} 56. Kg6 {[%emt 0:00:10]} Re3 {[%emt 0:01:05]} 57. Kf6 {[%emt 0:00:35]} Kg3 {[%emt 0:00:28]} 58. e6 {[%emt 0:00:14]} Rxe6+ {[%emt 0:00:23]} 59. Kxe6 {[%emt 0:00:09]} Kxg2 {[%emt 0:03:14]} 1/2-1/2

[Event "Israeli Open Championship 2019"]
[Site "Jerusalem"]
[Date "2019.12.17"]
[Round "5.12"]
[White "Dvoirys, Semen I."]
[Black "Bulkovstein, David"]
[Result "1-0"]
[ECO "C02"]
[WhiteElo "2467"]
[BlackElo "1889"]
[Annotator "ChessBase"]
[PlyCount "33"]
[EventDate "2019.12.12"]
[EventType "swiss"]
[EventCountry "ISR"]
[SourceTitle "playchess.com"]
[Source "ChessBase"]
[SourceQuality "1"]
[TimeControl "5400+30"]

1. e4 {[%emt 0:00:00]} e6 {[%emt 0:00:00]} 2. d4 {[%emt 0:00:00]} d5 {[%emt 0:00:00]} 3. e5 {[%emt 0:00:00]} c5 {[%emt 0:00:00]} 4. c3 {[%emt 0:00:00]} Nc6 {[%emt 0:00:00]} 5. Nf3 {[%emt 0:00:00]} Nge7 {[%emt 0:00:05]} 6. Na3 {[%emt 0:00:00]} cxd4 {[%emt 0:00:22]} 7. cxd4 {[%emt 0:00:06]} Nf5 {[%emt 0:00:09]} 8. Nc2 {[%emt 0:00:05]} Bd7 {[%emt 0:01:51]} 9. Bd3 {[%emt 0:13:13]} Qb6 {[%emt 0:01:39]} 10. O-O {[%emt 0:00:19]} Be7 {[%emt 0:10:21]} 11. g4 {[%emt 0:04:22]} Nh6 {[%emt 0:00:26]} 12. h3 {[%emt 0:00:56]} O-O-O {[%emt 0:11:25]} 13. b4 {[%emt 0:02:19]} Kb8 {[%emt 0:03:10]} 14. Bd2 {[%emt 0:01:41]} a6 {[%emt 0:08:54]} 15. a4 {[%emt 1:14:29]} Na7 {[%emt 0:02:09]} 16. b5 {[%emt 0:00:00]} Ka8 {[%emt 0:00:57]} 17. a5 {[%emt 0:00:00]} 1-0

[Event "Israeli Open Championship 2019"]
[Site "Jerusalem"]
[Date "2019.12.17"]
[Round "5.13"]
[White "Birnboim, Nathan"]
[Black "Levitan, Ronit"]
[Result "1-0"]
[ECO "E04"]
[WhiteElo "2393"]
[BlackElo "1876"]
[Annotator "ChessBase"]
[PlyCount "53"]
[EventDate "2019.12.12"]
[EventType "swiss"]
[EventCountry "ISR"]
[SourceTitle "playchess.com"]
[Source "ChessBase"]
[SourceQuality "1"]
[TimeControl "5400+30"]

1. d4 {[%emt 0:01:34]} d5 {[%emt 0:00:04]} 2. c4 {[%emt 0:00:14]} e6 {[%emt 0:00:05]} 3. Nf3 {[%emt 0:00:04]} Nf6 {[%emt 0:00:06]} 4. g3 {[%emt 0:00:04]} dxc4 {[%emt 0:00:39]} 5. Bg2 {[%emt 0:00:07]} a6 {[%emt 0:00:20]} 6. O-O {[%emt 0:00:16]} Nc6 {[%emt 0:00:10]} 7. e3 {[%emt 0:00:19]} Rb8 {[%emt 0:00:36]} 8. Nfd2 {[%emt 0:00:52]} e5 {[%emt 0:00:41]} 9. Bxc6+ {[%emt 0:00:30]} bxc6 {[%emt 0:00:07]} 10. dxe5 {[%emt 0:00:32]} Ng4 {[%emt 0:00:13]} 11. Nxc4 {[%emt 0:00:54]} Be6 {[%emt 0:00:05]} 12. Nbd2 {[%emt 0:09:26]} h5 {[%emt 0:01:15]} 13. f3 {[%emt 0:08:35]} Rb4 {[%emt 0:01:21]} 14. b3 {[%emt 0:00:52]} h4 {[%emt 0:09:47]} 15. fxg4 {[%emt 0:01:34]} hxg3 {[%emt 0:00:43]} 16. hxg3 {[%emt 0:08:04]} Qg5 {[%emt 0:05:21]} 17. Qf3 {[%emt 0:00:41]} Bd5 {[%emt 0:04:44]} 18. Qf5 {[%emt 0:00:36]} Qd8 {[%emt 0:12:53]} 19. Nf3 {[%emt 0:07:04]} Be6 {[%emt 0:04:20]} 20. Qe4 {[%emt 0:05:09]} Bd5 {[%emt 0:02:08]} 21. Qf4 {[%emt 0:02:32]} Be7 {[%emt 0:05:00]} 22. e4 {[%emt 0:06:36]} Be6 {[%emt 0:17:32]} 23. Be3 {[%emt 0:04:32]} Qd3 {[%emt 0:02:50]} 24. Rad1 {[%emt 0:03:51]} Qc2 {[%emt 0:04:06]} 25. Rd2 {[%emt 0:00:39]} g5 {[%emt 0:01:24]} 26. Nxg5 {[%emt 0:01:12]} Bxg5 {[%emt 0:00:12]} 27. Qxg5 {[%emt 0:00:17]} 1-0

[Event "Israeli Open Championship 2019"]
[Site "Jerusalem"]
[Date "2019.12.17"]
[Round "5.14"]
[White "Friedland, Moshe"]
[Black "Gunders, Elad"]
[Result "1/2-1/2"]
[ECO "B33"]
[WhiteElo "2267"]
[BlackElo "1803"]
[Annotator "ChessBase"]
[PlyCount "38"]
[EventDate "2019.12.12"]
[EventType "swiss"]
[EventCountry "ISR"]
[SourceTitle "playchess.com"]
[Source "ChessBase"]
[SourceQuality "1"]
[TimeControl "5400+30"]

1. e4 {[%emt 0:01:04]} c5 {[%emt 0:00:00]} 2. Nf3 {[%emt 0:00:03]} e6 {[%emt 0:00:00]} 3. d4 {[%emt 0:00:03]} cxd4 {[%emt 0:00:00]} 4. Nxd4 {[%emt 0:00:03]} Nf6 {[%emt 0:00:00]} 5. Nc3 {[%emt 0:00:01]} Nc6 {[%emt 0:00:00]} 6. g3 {[%emt 0:00:05]} Qb6 {[%emt 0:01:07]} 7. Nb3 {[%emt 0:08:18]} Bb4 {[%emt 0:06:41]} 8. Be3 {[%emt 0:03:40]} Qc7 {[%emt 0:01:14]} 9. Bg2 {[%emt 0:00:12]} O-O {[%emt 0:03:34]} 10. O-O {[%emt 0:05:58]} Bxc3 {[%emt 0:05:04]} 11. bxc3 {[%emt 0:00:06]} d5 {[%emt 0:01:08]} 12. exd5 {[%emt 0:00:21]} Nxd5 {[%emt 0:01:00]} 13. Bc5 {[%emt 0:03:45]} Rd8 {[%emt 0:03:19]} 14. Qg4 {[%emt 0:10:43]} b6 {[%emt 0:04:21]} 15. Ba3 {[%emt 0:01:41]} Bb7 {[%emt 0:07:01]} 16. Rfe1 {[%emt 0:04:51]} Ne5 {[%emt 0:13:49]} 17. Qh4 {[%emt 0:04:13]} Qxc3 {[%emt 0:50:12]} 18. Rxe5 Qxe5 19. c4 {[%emt 0:54:23]} Ne3 {[%emt 0:01:00]} 1/2-1/2

[Event "Israeli Open Championship 2019"]
[Site "Jerusalem"]
[Date "2019.12.17"]
[Round "5.15"]
[White "Uritsky, Yonathan"]
[Black "Berenboym, Igor"]
[Result "1-0"]
[ECO "B40"]
[WhiteElo "1881"]
[BlackElo "2100"]
[Annotator "ChessBase"]
[PlyCount "93"]
[EventDate "2019.12.12"]
[EventType "swiss"]
[EventCountry "ISR"]
[SourceTitle "playchess.com"]
[Source "ChessBase"]
[SourceQuality "1"]
[TimeControl "5400+30"]

1. e4 {[%emt 0:00:00]} c5 {[%emt 0:00:00]} 2. Nf3 {[%emt 0:00:00]} e6 {[%emt 0:00:00]} 3. d4 {[%emt 0:00:23]} cxd4 {[%emt 0:00:00]} 4. Nxd4 {[%emt 0:00:08]} Nf6 {[%emt 0:00:00]} 5. Nc3 {[%emt 0:00:13]} Bb4 {[%emt 0:00:00]} 6. e5 {[%emt 0:00:22]} Nd5 {[%emt 0:00:00]} 7. Bd2 {[%emt 0:05:41]} Nxc3 {[%emt 0:03:54]} 8. bxc3 {[%emt 0:00:43]} Be7 {[%emt 0:00:11]} 9. Qg4 {[%emt 0:02:51]} g6 {[%emt 0:00:50]} 10. Bd3 {[%emt 0:01:34]} Nc6 {[%emt 0:00:12]} 11. Qe4 {[%emt 0:01:42]} f5 {[%emt 0:16:46]} 12. exf6 {[%emt 0:04:52]} Bxf6 {[%emt 0:00:22]} 13. h4 {[%emt 0:02:21]} d5 {[%emt 0:01:17]} 14. Qe3 {[%emt 0:01:12]} Kf7 {[%emt 0:01:01]} 15. Nf3 {[%emt 0:12:25]} e5 {[%emt 0:05:59]} 16. Ng5+ {[%emt 0:01:31]} Kg7 {[%emt 0:01:39]} 17. Rd1 {[%emt 0:16:35]} h6 {[%emt 0:02:22]} 18. Nh3 {[%emt 0:00:23]} Bxh4 {[%emt 0:15:59]} 19. c4 {[%emt 0:06:30]} e4 {[%emt 0:02:31]} 20. Bxe4 {[%emt 0:03:27]} Bg4 {[%emt 0:01:50]} 21. Bc3+ {[%emt 0:02:04]} d4 {[%emt 0:03:55]} 22. Bxd4+ {[%emt 0:07:39]} Nxd4 {[%emt 0:00:17]} 23. Rxd4 {[%emt 0:02:05]} Qa5+ {[%emt 0:02:14]} 24. Qd2 {[%emt 0:01:10]} Qxd2+ {[%emt 0:06:27]} 25. Kxd2 {[%emt 0:00:39]} Bf6 {[%emt 0:00:19]} 26. Rd3 {[%emt 0:01:22]} Rhe8 {[%emt 0:34:55]} 27. f3 {[%emt 0:25:38]} Re7 {[%emt 0:00:00]} 28. Rb1 {[%emt 0:00:00]} Bxh3 {[%emt 0:00:00]} 29. gxh3 {[%emt 0:00:00]} Rb8 {[%emt 0:01:30]} 30. c5 {[%emt 0:00:00]} Be5 {[%emt 0:00:00]} 31. Rdb3 {[%emt 0:00:00]} Rd8+ {[%emt 0:00:00]} 32. Ke2 {[%emt 0:00:00]} Rdd7 {[%emt 0:00:00]} 33. Rxb7 {[%emt 0:00:00]} Rxb7 {[%emt 0:00:00]} 34. Rxb7 Rxb7 {[%emt 0:00:00]} 35. Bxb7 {[%emt 0:00:00]} Kf6 {[%emt 0:00:00]} 36. Ke3 {[%emt 0:00:00]} g5 {[%emt 0:00:00]} 37. Ke4 {[%emt 0:00:00]} Bg3 {[%emt 0:00:00]} 38. Bc8 {[%emt 0:00:00]} h5 {[%emt 0:00:00]} 39. Kd5 {[%emt 0:00:00]} h4 {[%emt 0:00:00]} 40. Kc6 {[%emt 0:00:00]} Bf2 {[%emt 0:00:00]} 41. Kd6 {[%emt 0:00:00]} Bg3+ {[%emt 0:00:00]} 42. Kd7 {[%emt 0:00:00]} Kf5 {[%emt 0:00:00]} 43. c6 {[%emt 0:00:00]} Be5 {[%emt 0:00:00]} 44. c7 {[%emt 0:00:00]} Kf4 {[%emt 0:00:00]} 45. Bb7 {[%emt 0:00:00]} Bxc7 {[%emt 0:00:00]} 46. Kxc7 {[%emt 0:00:00]} Kg3 {[%emt 0:00:00]} 47. Bc8 {[%emt 0:00:00]} 1-0